fUSD/lending_fUSD_20250204
["ID","MTS","AMOUNT","RATE_DAILY","PERIOD"]
[351617144,1738666261938,-694.48,9.446e-05,2]
[351617145,1738666261948,-500.0,9.446e-05,2]
[351617146,1738666261958,-235.93177722,9.446e-05,2]
[351617147,1738666261968,-944.67,9.446e-05,2]
[351617148,1738666262141,-500.0,9.446e-05,2]
[351617149,1738666262163,-1539.06,9.446e-05,2]
[351617150,1738666262180,-1293.87,9.446e-05,2]
[351617151,1738666262190,-1026.96,9.446e-05,2]
[351617152,1738666262200,-500.0,9.446e-05,2]
[351617153,1738666262209,-1448.18,9.446e-05,2]
[351617154,1738666262219,-1933.36,9.446e-05,2]
[351617155,1738666262228,-500.0,9.446e-05,2]
[351617156,1738666262238,-1108.43,9.446e-05,2]
[351617157,1738666262247,-500.0,9.446e-05,2]
[351617158,1738666262258,-1014.38,9.446e-05,2]
[351617159,1738666262268,-1405.97,9.446e-05,2]
[351617160,1738666262278,-500.0,9.446e-05,2]
[351617161,1738666262288,-1538.12,9.446e-05,2]
[351617162,1738666262298,-763.32,9.446e-05,2]
[351617163,1738666262308,-500.0,9.446e-05,2]
[351617164,1738666262318,-2844.58,9.446e-05,2]
[351617165,1738666262327,-762.83,9.446e-05,2]
[351617166,1738666262337,-681.6,9.446e-05,2]
[351617167,1738666262347,-543.84798828,9.446e-05,2]
[351617168,1738666262356,-753.58,9.446e-05,2]
[351617169,1738666262365,-1449.41,9.446e-05,2]
[351617170,1738666262375,-1972.38,9.446e-05,2]
[351617171,1738666262384,-2434.55,9.446e-05,2]
[351617172,1738666262394,-2349.51,9.446e-05,2]
[351617173,1738666262403,-1491.33,9.446e-05,2]
[351617174,1738666262414,-537.48,9.446e-05,2]
[351617175,1738666262428,-646.53,9.446e-05,2]
[351617176,1738666262438,-2183.22,9.446e-05,2]
[351617177,1738666262448,-2533.64,9.446e-05,2]
[351617178,1738666262458,-1141.92,9.446e-05,2]
[351617179,1738666262468,-931.86,9.446e-05,2]
[351617180,1738666262477,-507.7,9.446e-05,2]
[351617181,1738666262487,-2142.56,9.446e-05,2]
[351617182,1738666262498,-500.0,9.446e-05,2]
[351617183,1738666262508,-819.59,9.446e-05,2]
[351617184,1738666262518,-963.79,9.446e-05,2]
[351617185,1738666262527,-807.06,9.446e-05,2]
[351617186,1738666262537,-1496.82,9.446e-05,2]
[351617187,1738666262547,-1012.66,9.446e-05,2]
[351617188,1738666262556,-500.0,9.446e-05,2]
[351617189,1738666262565,-500.0,9.446e-05,2]
[351617190,1738666262575,-1580.21,9.446e-05,2]
[351617191,1738666262585,-500.0,9.446e-05,2]
[351617192,1738666262594,-1093.78,9.446e-05,2]
[351617193,1738666262604,-726.52,9.446e-05,2]
[351617194,1738666262613,-568.23,9.446e-05,2]
[351617195,1738666262624,-500.0,9.446e-05,2]
[351617196,1738666262633,-500.0,9.446e-05,2]
[351617197,1738666262644,-3113.89,9.446e-05,2]
[351617198,1738666262654,-2079.82,9.446e-05,2]
[351617199,1738666262664,-657.88,9.446e-05,2]
[351617200,1738666262674,-559.25,9.446e-05,2]
[351617201,1738666262683,-545.71,9.446e-05,2]
[351617202,1738666262693,-1145.74,9.446e-05,2]
[351617203,1738666262702,-1366.26,9.446e-05,2]
[351617204,1738666262712,-1661.25,9.446e-05,2]
[351617205,1738666262721,-500.0,9.446e-05,2]
[351617206,1738666262731,-500.0,9.446e-05,2]
[351617207,1738666262740,-500.0,9.446e-05,2]
[351617208,1738666262750,-500.0,9.446e-05,2]
[351617209,1738666262760,-1267.42,9.446e-05,2]
[351617210,1738666262769,-1596.56,9.446e-05,2]
[351617211,1738666262779,-1248.59,9.446e-05,2]
[351617212,1738666262788,-1570.67,9.446e-05,2]
[351617213,1738666262798,-500.0,9.446e-05,2]
[351617214,1738666262808,-500.0,9.446e-05,2]
[351617215,1738666262818,-1319.75,9.446e-05,2]
[351617216,1738666262827,-1179.66,9.446e-05,2]
[351617217,1738666262837,-2198.65,9.446e-05,2]
[351617218,1738666262847,-992.99,9.446e-05,2]
[351617219,1738666262856,-1625.3,9.446e-05,2]
[351617220,1738666262866,-1582.81,9.446e-05,2]
[351617221,1738666262875,-1213.52,9.446e-05,2]
[351617222,1738666262885,-500.0,9.446e-05,2]
[351617223,1738666262895,-500.0,9.446e-05,2]
[351617224,1738666262904,-1103.89,9.446e-05,2]
[351617225,1738666262914,-500.0,9.446e-05,2]
[351617226,1738666262927,-1286.49,9.446e-05,2]
[351617227,1738666262936,-660.98,9.446e-05,2]
[351617228,1738666262946,-923.7,9.446e-05,2]
[351617229,1738666262955,-500.0,9.446e-05,2]
[351617230,1738666262965,-559.28,9.446e-05,2]
[351617231,1738666262975,-905.0,9.446e-05,2]
[351617232,1738666262984,-1310.3,9.446e-05,2]
[351617233,1738666262994,-500.0,9.446e-05,2]
[351617234,1738666263003,-636.31,9.446e-05,2]
[351617235,1738666263013,-500.0,9.446e-05,2]
[351617236,1738666263023,-558.39990246,9.446e-05,2]
[351617237,1738666263032,-500.0,9.446e-05,2]
[351617238,1738666263043,-542.77,9.446e-05,2]
[351617239,1738666263053,-520.0,9.446e-05,2]
[351617240,1738666263063,-1706.28,9.446e-05,2]
[351617241,1738666263073,-1060.8,9.446e-05,2]
[351617242,1738666263084,-1066.92,9.446e-05,2]
[351617243,1738666263096,-500.0,9.446e-05,2]
[351617244,1738666263108,-1248.82,9.446e-05,2]
[351617245,1738666263119,-500.0,9.446e-05,2]
[351617246,1738666263129,-716.2,9.446e-05,2]
[351617247,1738666263141,-500.0,9.446e-05,2]
[351617248,1738666263151,-1020.63,9.446e-05,2]
[351617249,1738666263162,-778.52,9.446e-05,2]
[351617250,1738666263172,-1782.36,9.446e-05,2]
[351617251,1738666263185,-500.0,9.446e-05,2]
[351617252,1738666263194,-919.14,9.446e-05,2]
[351617253,1738666263204,-881.44,9.446e-05,2]
[351617254,1738666263215,-317.75185563,9.446e-05,2]
[351617255,1738666263225,-743.73,9.446e-05,2]
[351617256,1738666263235,-1474.07,9.446e-05,2]
[351617257,1738666263244,-500.0,9.446e-05,2]
[351617258,1738666263254,-457.25906273,9.447e-05,2]
[351617259,1738666263264,-500.0,9.447e-05,2]
[351617260,1738666263275,-500.0,9.447e-05,2]
[351617261,1738666263285,-500.0,9.447e-05,2]
[351617262,1738666263295,-500.0,9.447e-05,2]
[351617263,1738666263304,-500.0,9.447e-05,2]
[351617264,1738666263314,-500.0,9.447e-05,2]
[351617265,1738666263325,-573.49,9.447e-05,2]
[351617266,1738666263335,-826.86,9.447e-05,2]
[351617267,1738666263344,-500.0,9.447e-05,2]
[351617268,1738666263355,-500.0,9.447e-05,2]
[351617269,1738666263364,-500.0,9.447e-05,2]
[351617270,1738666263374,-500.0,9.447e-05,2]
[351617271,1738666263385,-500.0,9.447e-05,2]
[351617272,1738666263395,-500.0,9.447e-05,2]
[351617273,1738666263405,-500.0,9.447e-05,2]
[351617274,1738666263413,-500.0,9.447e-05,2]
[351617275,1738666263423,-500.0,9.447e-05,2]
[351617276,1738666263435,-500.0,9.447e-05,2]
[351617277,1738666263444,-589.45418718,9.447e-05,2]
[351617278,1738666263453,-582.91,9.447e-05,2]
[351617279,1738666263462,-906.73,9.447e-05,2]
[351617280,1738666263472,-500.0,9.447e-05,2]
[351617281,1738666263481,-500.0,9.447e-05,2]
[351617282,1738666263492,-566.69,9.447e-05,2]
[351617283,1738666263502,-500.0,9.447e-05,2]
[351617284,1738666263512,-520.23,9.447e-05,2]
[351617285,1738666263523,-627.36,9.447e-05,2]
[351617286,1738666263533,-500.0,9.447e-05,2]
[351617287,1738666263543,-500.0,9.447e-05,2]
[351617288,1738666263553,-521.41,9.447e-05,2]
[351617289,1738666263563,-500.0,9.447e-05,2]
[351617290,1738666263573,-536.62,9.447e-05,2]
[351617291,1738666263583,-500.0,9.447e-05,2]
[351617292,1738666263593,-500.0,9.447e-05,2]
[351617293,1738666263603,-500.0,9.447e-05,2]
[351617294,1738666263613,-593.34,9.447e-05,2]
[351617295,1738666263623,-500.0,9.447e-05,2]
[351617296,1738666263633,-500.0,9.447e-05,2]
[351617297,1738666263643,-763.48,9.447e-05,2]
[351617298,1738666263654,-500.0,9.447e-05,2]
[351617299,1738666263664,-500.0,9.447e-05,2]
[351617300,1738666263674,-762.35,9.447e-05,2]
[351617301,1738666263685,-500.0,9.447e-05,2]
[351617302,1738666263696,-500.0,9.447e-05,2]
[351617303,1738666263705,-532.38,9.447e-05,2]
[351617304,1738666263715,-500.0,9.447e-05,2]
[351617305,1738666263724,-684.17,9.447e-05,2]
[351617306,1738666263734,-510.91,9.447e-05,2]
[351617307,1738666263744,-665.46,9.447e-05,2]
[351617308,1738666263754,-516.45,9.447e-05,2]
[351617309,1738666263763,-500.0,9.447e-05,2]
[351617310,1738666263773,-380.95158646,9.447e-05,2]
[351617311,1738666263782,-529.84,9.447e-05,2]
[351617312,1738666263792,-602.27,9.447e-05,2]
[351617313,1738666263802,-500.0,9.447e-05,2]
[351617314,1738666263812,-886.01,9.447e-05,2]
[351617315,1738666263821,-852.86,9.447e-05,2]
[351617316,1738666263831,-629.17,9.447e-05,2]
[351617317,1738666263841,-500.0,9.447e-05,2]
[351617318,1738666263850,-500.0,9.447e-05,2]
[351617319,1738666263860,-500.0,9.447e-05,2]
[351617320,1738666263871,-1183.56,9.447e-05,2]
[351617321,1738666263880,-500.0,9.447e-05,2]
[351617322,1738666263890,-648.55,9.447e-05,2]
[351617323,1738666263900,-215.26178678,9.447e-05,2]
[351617324,1738666263910,-719.44,9.447e-05,2]
[351617325,1738666263920,-500.0,9.447e-05,2]
[351617326,1738666263931,-500.0,9.447e-05,2]
[351617327,1738666263940,-987.7,9.447e-05,2]
[351617328,1738666263950,-738.7,9.447e-05,2]
[351617329,1738666263960,-730.04,9.447e-05,2]
[351617330,1738666263970,-1012.94,9.447e-05,2]
[351617331,1738666263980,-500.0,9.447e-05,2]
[351617332,1738666263990,-500.0,9.447e-05,2]
[351617333,1738666264000,-500.0,9.447e-05,2]
[351617334,1738666264010,-1018.61,9.447e-05,2]
[351617335,1738666264020,-631.63,9.447e-05,2]
[351617336,1738666264029,-803.76,9.447e-05,2]
[351617337,1738666264039,-500.0,9.447e-05,2]
[351617338,1738666264048,-693.01,9.447e-05,2]
[351617339,1738666264058,-673.09,9.447e-05,2]
[351617340,1738666264068,-500.0,9.447e-05,2]
[351617341,1738666264079,-844.23,9.447e-05,2]
[351617342,1738666264089,-953.01,9.447e-05,2]
[351617343,1738666264103,-301.88646233,9.447e-05,2]
[351617344,1738666264113,-500.0,9.447e-05,2]
[351617345,1738666264123,-533.38,9.447e-05,2]
[351617346,1738666264133,-500.0,9.447e-05,2]
[351617347,1738666264143,-500.0,9.447e-05,2]
[351617348,1738666264153,-659.28,9.447e-05,2]
[351617349,1738666264163,-578.55,9.447e-05,2]
[351617350,1738666264174,-511.51,9.447e-05,2]
[351617351,1738666264186,-500.0,9.447e-05,2]
[351617352,1738666264197,-611.5,9.447e-05,2]
[351617353,1738666264207,-500.0,9.447e-05,2]
[351617354,1738666264217,-713.86,9.447e-05,2]
[351617355,1738666264227,-611.93,9.447e-05,2]
[351617356,1738666264237,-1116.38,9.447e-05,2]
[351617357,1738666264247,-639.02,9.447e-05,2]
[351617358,1738666264257,-797.65,9.447e-05,2]
[351617359,1738666264267,-819.52,9.447e-05,2]
[351617360,1738666264278,-500.0,9.447e-05,2]
[351617361,1738666264288,-500.0,9.447e-05,2]
[351617362,1738666264299,-683.87,9.447e-05,2]
[351617363,1738666264309,-620.55,9.447e-05,2]
[351617364,1738666264319,-500.0,9.447e-05,2]
[351617365,1738666264329,-503.52,9.447e-05,2]
[351617366,1738666264339,-500.0,9.447e-05,2]
[351617367,1738666264349,-500.0,9.447e-05,2]
[351617368,1738666264360,-893.34,9.447e-05,2]
[351617369,1738666264370,-500.0,9.447e-05,2]
[351617370,1738666264379,-500.0,9.447e-05,2]
[351617371,1738666264388,-500.0,9.447e-05,2]
[351617372,1738666264398,-500.0,9.447e-05,2]
[351617373,1738666264407,-735.16,9.447e-05,2]
[351617374,1738666264416,-500.0,9.447e-05,2]
[351617375,1738666264426,-500.0,9.447e-05,2]
[351617376,1738666264437,-646.5,9.447e-05,2]
[351617377,1738666264447,-500.0,9.447e-05,2]
[351617378,1738666264457,-997.44,9.447e-05,2]
[351617379,1738666264467,-500.0,9.447e-05,2]
[351617380,1738666264477,-500.0,9.447e-05,2]
[351617381,1738666264486,-307.52016756,9.447e-05,2]
[351617382,1738666264496,-500.0,9.447e-05,2]
[351617383,1738666264506,-500.0,9.447e-05,2]
[351617384,1738666264516,-500.0,9.447e-05,2]
[351617385,1738666264525,-632.22,9.447e-05,2]
[351617386,1738666264535,-616.82,9.447e-05,2]
[351617387,1738666264545,-500.0,9.447e-05,2]
[351617388,1738666264554,-500.0,9.447e-05,2]
[351617389,1738666264564,-500.0,9.447e-05,2]
[351617390,1738666264573,-520.19214372,9.447e-05,2]
[351617391,1738666264583,-648.81,9.447e-05,2]
[351617392,1738666264593,-500.0,9.447e-05,2]
[351617393,1738666264603,-500.0,9.447e-05,2]
[351617394,1738666264612,-915.19,9.447e-05,2]
[351617395,1738666264622,-2371.2,9.447e-05,2]
[351617396,1738666264631,-838.62,9.447e-05,2]
[351617397,1738666264641,-500.0,9.447e-05,2]
[351617398,1738666264651,-1587.07,9.447e-05,2]
[351617399,1738666264661,-500.0,9.447e-05,2]
[351617400,1738666264671,-1816.92,9.447e-05,2]
[351617401,1738666264683,-500.0,9.447e-05,2]
[351617402,1738666264692,-500.0,9.447e-05,2]
[351617403,1738666264767,-715.31,9.447e-05,2]
[351617404,1738666264778,-1488.57,9.447e-05,2]
[351617405,1738666264788,-500.0,9.447e-05,2]
[351617406,1738666264798,-2550.15,9.447e-05,2]
[351617407,1738666264808,-500.0,9.447e-05,2]
[351617408,1738666264818,-530.01,9.447e-05,2]
[351617409,1738666264828,-500.0,9.447e-05,2]
[351617410,1738666264839,-500.0,9.447e-05,2]
[351617411,1738666264848,-500.0,9.447e-05,2]
[351617412,1738666264858,-1658.68,9.447e-05,2]
[351617413,1738666264867,-1030.96,9.447e-05,2]
[351617414,1738666264877,-578.27,9.447e-05,2]
[351617415,1738666264887,-500.0,9.447e-05,2]
[351617416,1738666264897,-517.33,9.447e-05,2]
[351617417,1738666264907,-500.0,9.447e-05,2]
[351617418,1738666264918,-500.0,9.447e-05,2]
[351617419,1738666264931,-1386.93,9.447e-05,2]
[351617420,1738666264943,-975.74,9.447e-05,2]
[351617421,1738666264952,-740.72,9.447e-05,2]
[351617422,1738666264962,-500.0,9.447e-05,2]
[351617423,1738666264972,-1222.2,9.447e-05,2]
[351617424,1738666264982,-500.0,9.447e-05,2]
[351617425,1738666264992,-500.0,9.447e-05,2]
[351617426,1738666265002,-1336.79,9.447e-05,2]
[351617427,1738666265011,-500.0,9.447e-05,2]
[351617428,1738666265020,-526.32,9.447e-05,2]
[351617429,1738666265030,-516.01,9.447e-05,2]
[351617430,1738666265040,-1365.03,9.447e-05,2]
[351617431,1738666265050,-1087.43,9.447e-05,2]
[351617432,1738666265060,-500.0,9.447e-05,2]
[351617433,1738666265071,-1560.86,9.447e-05,2]
[351617434,1738666265080,-635.5,9.447e-05,2]
[351617435,1738666265091,-500.0,9.447e-05,2]
[351617436,1738666265106,-1471.54,9.447e-05,2]
[351617437,1738666265116,-500.0,9.447e-05,2]
[351617438,1738666265126,-196.94152681,9.447e-05,2]
[351617439,1738666265137,-1627.62,9.447e-05,2]
[351617440,1738666265147,-589.4,9.447e-05,2]
[351617441,1738666265158,-500.0,9.447e-05,2]
[351617442,1738666265168,-500.0,9.447e-05,2]
[351617443,1738666265179,-500.0,9.447e-05,2]
[351617444,1738666265188,-500.0,9.447e-05,2]
[351617445,1738666265197,-500.0,9.447e-05,2]
[351617446,1738666265207,-1341.25,9.447e-05,2]
[351617447,1738666265218,-500.0,9.447e-05,2]
[351617448,1738666265229,-611.74,9.447e-05,2]
[351617449,1738666265239,-1635.21,9.447e-05,2]
[351617450,1738666265249,-1060.11,9.447e-05,2]
[351617451,1738666265259,-500.0,9.447e-05,2]
[351617452,1738666265270,-761.58,9.447e-05,2]
[351617453,1738666265281,-500.0,9.447e-05,2]
[351617454,1738666265295,-563.5,9.447e-05,2]
[351617455,1738666265306,-500.0,9.447e-05,2]
[351617456,1738666265318,-500.0,9.447e-05,2]
[351617457,1738666265330,-500.0,9.447e-05,2]
[351617458,1738666265341,-500.0,9.447e-05,2]
[351617459,1738666265351,-665.51,9.447e-05,2]
[351617460,1738666265361,-547.43,9.447e-05,2]
[351617461,1738666265371,-500.0,9.447e-05,2]
[351617462,1738666265382,-500.0,9.45e-05,2]
[351617463,1738666265392,-500.0,9.45e-05,2]
[351617464,1738666265403,-500.0,9.45e-05,2]
[351617465,1738666265413,-205.0,9.54e-05,2]
[351617466,1738666265425,-431.43955898,9.556e-05,2]
[351617467,1738666265442,-762.35,9.583e-05,2]
[351617468,1738666265453,-778.66,9.583e-05,2]
[351617469,1738666265463,-501.61,9.583e-05,2]
[351617470,1738666265474,-500.0,9.583e-05,2]
[351617471,1738666265484,-500.0,9.583e-05,2]
[351617472,1738666265494,-783.26,9.583e-05,2]
[351617473,1738666265504,-777.35,9.583e-05,2]
[351617474,1738666265514,-776.52,9.583e-05,2]
[351617475,1738666265523,-782.02,9.583e-05,2]
[351617476,1738666265532,-500.0,9.583e-05,2]
[351617477,1738666265541,-539.22,9.583e-05,2]
[351617478,1738666265551,-532.69,9.583e-05,2]
[351617479,1738666265561,-500.0,9.583e-05,2]
[351617480,1738666265571,-710.15,9.583e-05,2]
[351617481,1738666265580,-607.89,9.583e-05,2]
[351617482,1738666265590,-500.0,9.583e-05,2]
[351617483,1738666265599,-595.82,9.583e-05,2]
[351617484,1738666265609,-500.0,9.583e-05,2]
[351617485,1738666265619,-500.0,9.583e-05,2]
[351617486,1738666265629,-518.82,9.583e-05,2]
[351617487,1738666265639,-500.0,9.583e-05,2]
[351617488,1738666265649,-744.95,9.583e-05,2]
[351617489,1738666265659,-624.60198347,9.583e-05,2]
[351617490,1738666265669,-500.0,9.583e-05,2]
[351617491,1738666265680,-856.37136,9.583e-05,2]
[351617492,1738666265690,-500.0,9.583e-05,2]
[351617493,1738666265700,-500.0,9.583e-05,2]
[351617494,1738666265710,-691.63,9.583e-05,2]
[351617495,1738666265720,-500.0,9.583e-05,2]
[351617496,1738666265730,-500.0,9.583e-05,2]
[351617497,1738666265740,-559.9,9.583e-05,2]
[351617498,1738666265750,-500.0,9.583e-05,2]
[351617499,1738666265760,-875.590645,9.583e-05,2]
[351617500,1738666265771,-500.0,9.583e-05,2]
[351617501,1738666265781,-516.13,9.583e-05,2]
[351617502,1738666265791,-500.0,9.583e-05,2]
[351617503,1738666265802,-663.56,9.583e-05,2]
[351617504,1738666265811,-541.64,9.583e-05,2]
[351617505,1738666265821,-500.0,9.583e-05,2]
[351617506,1738666265830,-500.0,9.583e-05,2]
[351617507,1738666265841,-859.42,9.583e-05,2]
[351617508,1738666265851,-549.17,9.583e-05,2]
[351617509,1738666265861,-500.0,9.583e-05,2]
[351617510,1738666265871,-753.75,9.583e-05,2]
[351617511,1738666265881,-190.50492955,9.583e-05,2]
[351617512,1738666265891,-242.53525771,9.583e-05,2]
[351617513,1738666265902,-500.0,9.583e-05,2]
[351617514,1738666265912,-858.01,9.583e-05,2]
[351617515,1738666265921,-925.63,9.583e-05,2]
[351617516,1738666265933,-883.72,9.583e-05,2]
[351617517,1738666265942,-500.0,9.583e-05,2]
[351617518,1738666265952,-500.0,9.583e-05,2]
[351617519,1738666265961,-500.0,9.583e-05,2]
[351617520,1738666265971,-582.15,9.583e-05,2]
[351617521,1738666265980,-500.0,9.583e-05,2]
[351617522,1738666265990,-924.81,9.583e-05,2]
[351617523,1738666266000,-232.90352374,9.583e-05,2]
[351617524,1738666266010,-500.0,9.583e-05,2]
[351617525,1738666266020,-788.86,9.583e-05,2]
[351617526,1738666266029,-551.71,9.583e-05,2]
[351617527,1738666266039,-500.0,9.583e-05,2]
[351617528,1738666266049,-686.39,9.583e-05,2]
[351617529,1738666266058,-500.0,9.583e-05,2]
[351617530,1738666266067,-500.0,9.583e-05,2]
[351617531,1738666266077,-500.0,9.583e-05,2]
[351617532,1738666266086,-500.0,9.583e-05,2]
[351617533,1738666266097,-500.0,9.583e-05,2]
[351617534,1738666266109,-633.47,9.583e-05,2]
[351617535,1738666266119,-151.92717586,9.583e-05,2]
[351617536,1738666266129,-500.0,9.583e-05,2]
[351617537,1738666266140,-500.0,9.583e-05,2]
[351617538,1738666266149,-1036.97,9.583e-05,2]
[351617539,1738666266159,-500.0,9.583e-05,2]
[351617540,1738666266169,-811.88,9.583e-05,2]
[351617541,1738666266182,-1154.75,9.583e-05,2]
[351617542,1738666266192,-511.43,9.583e-05,2]
[351617543,1738666266202,-500.0,9.583e-05,2]
[351617544,1738666266212,-765.14,9.583e-05,2]
[351617545,1738666266222,-1291.54,9.583e-05,2]
[351617546,1738666266232,-1554.52,9.583e-05,2]
[351617547,1738666266241,-500.0,9.583e-05,2]
[351617548,1738666266250,-1036.67,9.583e-05,2]
[351617549,1738666266260,-500.0,9.583e-05,2]
[351617550,1738666266269,-500.0,9.583e-05,2]
[351617551,1738666266278,-1160.07,9.583e-05,2]
[351617552,1738666266288,-877.39,9.583e-05,2]
[351617553,1738666266298,-1140.04,9.583e-05,2]
[351617554,1738666266307,-1693.45,9.583e-05,2]
[351617555,1738666266316,-500.0,9.583e-05,2]
[351617556,1738666266325,-511.02,9.583e-05,2]
[351617557,1738666266335,-500.0,9.583e-05,2]
[351617558,1738666266345,-500.0,9.583e-05,2]
[351617559,1738666266356,-635.7,9.583e-05,2]
[351617560,1738666266365,-890.36,9.583e-05,2]
[351617561,1738666266375,-918.28,9.583e-05,2]
[351617562,1738666266384,-1021.01,9.583e-05,2]
[351617563,1738666266393,-500.0,9.583e-05,2]
[351617564,1738666266403,-500.0,9.583e-05,2]
[351617565,1738666266413,-887.28,9.583e-05,2]
[351617566,1738666266423,-883.46,9.583e-05,2]
[351617567,1738666266434,-694.48,9.583e-05,2]
[351617568,1738666266443,-500.0,9.583e-05,2]
[351617569,1738666266453,-944.67,9.583e-05,2]
[351617570,1738666266462,-500.0,9.583e-05,2]
[351617571,1738666266472,-1539.06,9.583e-05,2]
[351617572,1738666266482,-1293.87,9.583e-05,2]
[351617573,1738666266492,-1026.96,9.583e-05,2]
[351617574,1738666266502,-500.0,9.583e-05,2]
[351617575,1738666266512,-1448.18,9.583e-05,2]
[351617576,1738666266521,-1933.36,9.583e-05,2]
[351617577,1738666266532,-500.0,9.583e-05,2]
[351617578,1738666266541,-1108.43,9.583e-05,2]
[351617579,1738666266551,-500.0,9.583e-05,2]
[351617580,1738666266560,-1405.97,9.583e-05,2]
[351617581,1738666266571,-1014.38,9.583e-05,2]
[351617582,1738666266581,-500.0,9.583e-05,2]
[351617583,1738666266591,-1538.12,9.583e-05,2]
[351617584,1738666266601,-763.32,9.583e-05,2]
[351617585,1738666266610,-300.36922312,9.583e-05,2]
[351617586,1738666266620,-2844.58,9.583e-05,2]
[351617587,1738666266630,-762.83,9.583e-05,2]
[351617588,1738666266640,-681.6,9.583e-05,2]
[351617589,1738666266650,-753.58,9.583e-05,2]
[351617590,1738666266660,-1449.41,9.583e-05,2]
[351617591,1738666266669,-1972.38,9.583e-05,2]
[351617592,1738666266679,-2434.55,9.583e-05,2]
[351617593,1738666266689,-2349.51,9.583e-05,2]
[351617594,1738666266698,-1491.33,9.583e-05,2]
[351617595,1738666266708,-537.48,9.583e-05,2]
[351617596,1738666266718,-646.53,9.583e-05,2]
[351617597,1738666266728,-2183.22,9.583e-05,2]
[351617598,1738666266738,-2533.64,9.583e-05,2]
[351617599,1738666266749,-1141.92,9.583e-05,2]
[351617600,1738666266759,-931.86,9.583e-05,2]
[351617601,1738666266769,-507.7,9.583e-05,2]
[351617602,1738666266779,-500.0,9.583e-05,2]
[351617603,1738666266788,-2142.56,9.583e-05,2]
[351617604,1738666266798,-819.59,9.583e-05,2]
[351617605,1738666266807,-963.79,9.583e-05,2]
[351617606,1738666266816,-807.06,9.583e-05,2]
[351617607,1738666266826,-1496.82,9.583e-05,2]
[351617608,1738666266835,-1012.66,9.583e-05,2]
[351617609,1738666266846,-500.0,9.583e-05,2]
[351617610,1738666266855,-602.60381066,9.583e-05,2]
[351617611,1738666266865,-1580.21,9.583e-05,2]
[351617612,1738666266875,-500.0,9.583e-05,2]
[351617613,1738666266884,-1093.78,9.583e-05,2]
[351617614,1738666266894,-726.52,9.583e-05,2]
[351617615,1738666266904,-568.23,9.583e-05,2]
[351617616,1738666266913,-224.25815804,9.583e-05,2]
[351617617,1738666266923,-500.0,9.583e-05,2]
[351617618,1738666266934,-3113.89,9.583e-05,2]
[351617619,1738666266943,-2079.82,9.583e-05,2]
[351617620,1738666266953,-657.88,9.583e-05,2]
[351617621,1738666266963,-559.25,9.583e-05,2]
[351617622,1738666266973,-545.71,9.583e-05,2]
[351617623,1738666266983,-1145.74,9.583e-05,2]
[351617624,1738666266992,-1366.26,9.583e-05,2]
[351617625,1738666267002,-1661.25,9.583e-05,2]
[351617626,1738666267012,-500.0,9.583e-05,2]
[351617627,1738666267022,-500.0,9.583e-05,2]
[351617628,1738666267032,-500.0,9.583e-05,2]
[351617629,1738666267042,-500.0,9.583e-05,2]
[351617630,1738666267053,-1267.42,9.583e-05,2]
[351617631,1738666267062,-1596.56,9.583e-05,2]
[351617632,1738666267072,-1248.59,9.583e-05,2]
[351617633,1738666267082,-1570.67,9.583e-05,2]
[351617634,1738666267093,-500.0,9.583e-05,2]
[351617635,1738666267106,-500.0,9.583e-05,2]
[351617636,1738666267116,-1319.75,9.583e-05,2]
[351617637,1738666267125,-1179.66,9.583e-05,2]
[351617638,1738666267135,-2198.65,9.583e-05,2]
[351617639,1738666267145,-992.99,9.583e-05,2]
[351617640,1738666267155,-1625.3,9.583e-05,2]
[351617641,1738666267164,-1582.81,9.583e-05,2]
[351617642,1738666267175,-1213.52,9.583e-05,2]
[351617643,1738666267187,-500.0,9.583e-05,2]